bitfinex/quotes_ETHUSD_20260308
["timestamp","ask_amount","ask_price","bid_price","bid_amount"]
[1772946064609,5.45083717,1941.1,1939.6,0.52721501]
[1772946064914,0.29897711,1940.8,1939.8,0.52721501]
[1772946065193,1.28819498,1940.7,1940.0,0.52721501]
[1772946065375,1.58717209,1940.7,1940.0,0.52721501]
[1772946065770,0.29897711,1940.7,1940.0,0.52721501]
[1772946066201,1.28813558,1940.8,1940.0,0.52721501]
[1772946066363,0.29891902,1940.7,1940.0,0.52721501]
[1772946066790,1.58695074,1940.9,1940.0,0.52721501]
[1772946067105,0.2988558,1940.8,1940.2,0.52721501]
[1772946067464,0.2988558,1940.8,1940.0,1.81584661]
[1772946067782,0.2988558,1940.8,1940.1,0.52721501]
[1772946068791,0.2988558,1940.8,1940.0,0.52721501]
[1772946068967,0.29874127,1940.6,1940.0,0.52721501]
[1772946069591,0.29874127,1940.6,1939.9,0.52721501]
[1772946069985,1.28819498,1940.7,1939.9,0.52721501]
[1772946070167,1.58685493,1940.8,1939.9,0.52721501]
[1772946070497,1.58682165,1940.8,1939.9,0.52721501]
[1772946070805,0.29862009,1940.9,1939.9,0.52721501]
[1772946071114,0.29862009,1940.7,1940.1,0.52721501]
[1772946072589,1.2881286,1940.8,1940.1,0.52721501]
[1772946072590,0.29855767,1940.8,1940.1,0.52721501]
[1772946072904,0.29855767,1940.8,1939.9,1.8159008]
[1772946073199,0.29855767,1940.8,1940.0,0.52721501]
[1772946073595,0.29850218,1940.6,1940.0,1.28861704]
[1772946073800,0.29850218,1940.6,1940.1,0.52721501]
[1772946075601,1.28832775,1940.5,1940.1,0.52721501]
[1772946075775,1.58681383,1940.6,1940.1,1.81579901]
[1772946075974,1.5868284,1940.6,1940.1,0.52721501]
[1772946076298,1.28832622,1940.6,1940.2,0.52721501]
[1772946076994,1.58659346,1940.6,1940.2,0.52721501]
[1772946077800,1.28832622,1940.6,1940.2,0.52721501]
[1772946077977,0.001,1940.7,1940.3,0.52721501]
[1772946079394,1.58735793,1940.7,1940.0,0.52721501]
[1772946080602,1.58737947,1940.7,1940.2,0.52721501]
[1772946082294,1.28922174,1940.7,1940.2,0.52721501]
[1772946082496,0.001,1940.7,1940.2,0.52721501]
[1772946082697,0.001,1940.7,1940.4,0.52721501]
[1772946083493,0.29894224,1940.7,1940.2,0.52721501]
[1772946084708,0.001,1940.7,1940.3,0.52721501]
[1772946085210,0.29883605,1940.7,1940.1,6.86721501]
[1772946085611,0.29883605,1940.7,1940.1,0.52721501]
[1772946086204,0.29883605,1940.7,1940.1,1.81580631]
[1772946087114,1.58601223,1940.6,1940.1,1.81580631]
[1772946087412,1.28826136,1940.6,1940.2,0.52721501]
[1772946087790,1.28924822,1940.7,1940.2,0.52721501]
[1772946088216,1.58694299,1940.7,1940.2,0.52721501]
[1772946088616,0.001,1940.7,1940.2,0.52721501]
[1772946089131,0.001,1940.7,1940.3,0.52721501]
[1772946091590,0.001,1940.7,1940.4,1.81560915]
[1772946092622,0.001,1940.7,1940.5,0.48571161]
[1772946092790,0.29741538,1940.9,1940.6,0.48571161]
[1772946092992,0.29741538,1940.9,1940.4,0.48571161]
[1772946093722,0.29736777,1940.7,1940.2,1.77422882]
[1772946093896,0.29736777,1940.7,1940.2,0.48571161]
[1772946095806,1.28826029,1940.7,1940.2,1.77422694]
[1772946096008,0.29728375,1940.6,1940.2,1.77422694]
[1772946096616,0.29728375,1940.8,1940.3,0.48571161]
[1772946098216,1.58543346,1940.8,1940.3,1.77412405]
[1772946098432,1.58543346,1940.8,1940.4,0.48571161]
[1772946099000,0.29728375,1940.8,1940.4,0.48571161]
[1772946099399,0.32796494,1940.7,1940.2,0.48571161]
[1772946099633,0.32796494,1940.7,1940.2,1.77422944]
[1772946099793,0.32796494,1940.7,1940.2,0.48571161]
[1772946099999,0.32796494,1940.7,1940.2,1.77423342]
[1772946100409,0.32796494,1940.7,1940.2,0.48571161]
[1772946100632,0.3279235,1940.5,1940.1,0.0011]
[1772946101033,0.3279235,1940.5,1940.4,0.0011]
[1772946101335,0.3279235,1940.5,1940.1,0.0011]
[1772946102420,0.3279235,1940.5,1939.5,1.29005313]
[1772946102625,0.32674647,1940.3,1939.5,1.29005313]
[1772946103003,0.32674647,1940.3,1939.5,1.77576474]
[1772946103627,0.32674647,1940.3,1939.5,0.48681161]
[1772946104528,1.28852695,1940.2,1939.6,1.28892555]
[1772946104732,1.61520052,1940.2,1939.7,0.48571161]
[1772946104932,0.32663654,1940.1,1939.7,0.48571161]
[1772946105910,0.32660008,1940.6,1939.7,0.48571161]
[1772946108243,1.28832775,1940.5,1939.9,0.48571161]
[1772946108442,0.32652813,1940.4,1939.7,0.48571161]
[1772946109117,1.61479457,1940.6,1939.7,0.48571161]
[1772946109641,0.32649175,1940.5,1939.7,0.48571161]
[1772946110925,0.3264186,1940.4,1939.9,0.48571161]
[1772946111120,0.3264186,1940.6,1939.9,0.48571161]
[1772946112313,5.15295834,1940.7,1939.9,0.48571161]
[1772946112515,0.32638233,1940.7,1939.9,0.48571161]
[1772946113128,1.61461169,1940.6,1940.0,1.7743714]
[1772946113822,0.001,1940.5,1940.0,1.7743714]
[1772946115843,0.001,1940.5,1940.1,0.48571161]
[1772946116650,0.32725286,1940.5,1940.1,0.48571161]
[1772946117746,0.32725286,1940.5,1940.1,1.77426176]
[1772946119651,1.61562694,1940.5,1940.1,0.48571161]
[1772946119949,1.61562694,1940.5,1940.1,1.77429099]
[1772946120157,0.32725286,1940.5,1940.1,1.77429099]
[1772946122055,0.32602475,1940.4,1939.9,0.48307198]
[1772946122254,0.32602475,1940.4,1939.8,1.28988307]
[1772946122546,0.32602475,1940.4,1939.8,1.7726915]
[1772946123556,0.32602475,1940.4,1939.9,0.48280843]
[1772946124124,1.61447157,1940.4,1939.9,1.2887]
[1772946124350,1.61447157,1940.4,1940.0,0.48280843]
[1772946124927,1.61442587,1940.4,1940.0,0.48280843]
[1772946125667,0.32602475,1940.4,1940.0,0.48280843]
[1772946125832,1.28933424,1940.5,1940.0,0.48280843]
[1772946126038,1.61433656,1940.4,1939.9,1.77150843]
[1772946126627,0.32588506,1940.3,1939.9,0.48280843]
[1772946127032,0.32588506,1940.3,1939.8,1.28984698]
[1772946127542,0.32588506,1940.3,1939.9,0.0011]
[1772946128256,1.61435764,1940.2,1939.9,0.0011]
[1772946129838,0.32577571,1940.1,1939.9,0.0011]
[1772946130266,0.32577571,1940.0,1939.8,0.0011]
[1772946130839,0.32464991,1940.1,1939.8,0.0011]
[1772946132467,0.32462593,1939.9,1939.8,0.0011]
[1772946134756,1.61335215,1939.9,1939.8,0.0011]
[1772946135067,1.61406357,1940.3,1939.8,0.48390843]
[1772946135652,0.32555912,1940.3,1939.8,0.48390843]
[1772946135854,1.61404749,1940.3,1939.8,0.48390843]
[1772946136249,1.61406901,1940.3,1939.8,0.48390843]
[1772946137258,1.61406901,1940.3,1939.9,0.48280843]
[1772946140880,0.32443016,1940.2,1939.9,0.48280843]
[1772946141072,0.32443016,1940.2,1939.8,0.48390843]
[1772946141273,0.32443016,1940.2,1939.8,1.77269514]
[1772946141576,0.32443016,1940.2,1940.0,0.0011]
[1772946141803,0.32543016,1940.2,1940.0,0.0011]
[1772946142872,1.28859337,1940.1,1940.0,0.0011]
[1772946143257,1.61298433,1940.1,1940.0,0.0011]
[1772946143658,1.6139513,1940.2,1940.0,0.0011]
[1772946143864,1.28957758,1940.2,1940.0,0.0011]
[1772946144383,0.32537372,1940.2,1940.0,0.0011]
[1772946144560,1.61391531,1940.2,1940.0,0.0011]
[1772946144760,0.32537372,1940.2,1940.0,0.0011]
[1772946145249,1.61391059,1940.2,1940.0,0.0011]
[1772946145450,1.61390098,1940.2,1940.0,0.0011]
[1772946145657,0.001,1940.2,1940.0,0.48390843]
[1772946146380,0.32533888,1940.5,1940.1,0.48280843]
[1772946146583,1.28846291,1940.4,1940.1,0.48280843]
[1772946147085,1.28846291,1940.5,1940.1,0.48280843]
[1772946147581,1.28846291,1940.5,1940.2,0.48280843]
[1772946147957,1.389,1940.9,1940.2,0.48280843]
[1772946147958,0.32530164,1940.8,1940.2,0.48280843]
[1772946148158,1.61376455,1940.8,1940.2,0.48280843]
[1772946148578,1.28846291,1940.7,1940.2,0.48280843]
[1772946148784,1.28846291,1940.8,1940.2,0.48280843]
[1772946149160,1.61374297,1940.8,1940.2,0.48280843]
[1772946149985,1.61374297,1940.8,1940.3,1.28846054]
[1772946150185,2.90187227,1940.8,1940.4,0.48280843]
[1772946150488,2.90187768,1940.8,1940.4,0.48280843]
[1772946150671,1.61374297,1940.8,1940.4,0.48280843]
[1772946151074,2.90187991,1940.8,1940.4,0.48280843]
[1772946152385,0.32522957,1940.7,1940.4,0.48280843]
[1772946152692,0.32522957,1940.7,1940.3,1.28845754]
[1772946152693,0.3252099,1940.6,1940.3,1.28845754]
[1772946152872,1.61367281,1940.6,1940.3,1.28845754]
[1772946153388,1.61367281,1940.6,1940.3,1.81932918]
[1772946153968,1.28846291,1940.6,1940.3,1.81932918]
[1772946154989,0.001,1940.5,1940.3,1.81932918]
[1772946155688,0.001,1940.5,1940.4,0.53087164]
[1772946156098,1.61324688,1940.9,1940.4,0.53087164]
[1772946156394,1.61460148,1940.8,1940.4,0.53087164]
[1772946158292,0.32610423,1940.6,1940.2,0.53087164]
[1772946158588,5.15277992,1940.9,1940.2,0.53087164]
[1772946158589,0.32610423,1940.9,1940.2,0.53087164]
[1772946158779,0.32610423,1940.8,1940.2,0.53087164]
[1772946158983,1.61456714,1940.8,1940.2,0.53087164]
[1772946159491,0.32608749,1940.7,1940.2,0.53087164]
[1772946160695,1.61430616,1940.7,1940.3,0.53087164]
[1772946162392,1.28846291,1940.6,1940.3,0.53087164]
[1772946162766,1.28846291,1940.6,1940.0,0.0011]
[1772946162993,1.28846291,1940.6,1940.2,0.53087164]
[1772946163795,2.57672509,1940.6,1940.2,0.53087164]
[1772946164099,1.6141902,1940.8,1940.2,0.53087164]
[1772946164470,1.2881796,1940.8,1940.2,0.53087164]
[1772946165491,1.61417793,1940.8,1940.4,0.53087164]
[1772946165685,1.28846291,1940.7,1940.4,0.53087164]
[1772946165885,1.61406413,1940.9,1940.4,0.53087164]
[1772946166287,0.32598507,1940.9,1940.4,0.53087164]
[1772946167371,0.001,1940.7,1940.4,0.53087164]
[1772946167567,0.001,1940.7,1940.4,1.81926417]
[1772946167767,0.001,1940.7,1940.5,0.53087164]
[1772946168194,1.61442129,1940.6,1940.3,0.53197164]
[1772946168578,1.61442129,1940.6,1940.3,0.0011]
[1772946168782,1.61442129,1940.6,1940.3,1.2895526]
[1772946168998,1.61440626,1940.5,1940.3,0.0011]
[1772946169200,0.32594335,1940.4,1940.0,0.0011]
[1772946169373,0.32484335,1940.3,1940.0,0.0011]
[1772946169710,1.61330564,1940.3,1940.0,0.0011]
[1772946170198,0.32484335,1940.3,1940.0,0.0011]
[1772946170587,0.32484335,1940.3,1940.0,0.53197164]
[1772946170789,1.28843022,1940.4,1940.0,0.53197164]
[1772946170984,1.28846291,1940.4,1940.0,0.53197164]
[1772946171382,1.28846291,1940.3,1940.0,0.53197164]
[1772946171578,0.32482183,1940.5,1940.0,0.53197164]
[1772946171579,1.28846291,1940.4,1940.0,0.53197164]
[1772946172499,1.28826136,1940.6,1940.2,0.53087164]
[1772946172685,1.28846291,1940.5,1940.2,0.53087164]
[1772946173003,1.28846291,1940.6,1940.2,0.53087164]
[1772946174578,2.57673545,1940.6,1940.2,0.53087164]
[1772946175104,2.57673545,1940.6,1940.2,1.81939078]
[1772946175305,1.28846291,1940.6,1940.2,1.81939078]
[1772946175673,1.28846291,1940.6,1940.3,0.53087164]
[1772946176580,1.28846291,1940.6,1940.3,1.81930761]
[1772946176779,1.28846291,1940.6,1940.4,0.53087164]
[1772946180216,0.001,1940.7,1940.4,0.53087164]
[1772946180391,1.28846291,1940.6,1940.4,0.53087164]
[1772946180586,1.28946291,1940.6,1940.5,1.81919939]
[1772946180817,1.28946291,1940.6,1940.5,0.53087164]
[1772946181528,1.28946291,1940.6,1940.5,1.81919939]
[1772946181694,1.28946291,1940.6,1940.5,0.53087164]
[1772946184719,1.28946291,1940.6,1940.3,0.0011]
[1772946184912,1.28946291,1940.6,1940.3,0.48567592]
[1772946185224,1.28946291,1940.6,1940.4,0.48457592]
[1772946186031,1.28946291,1940.6,1940.4,1.77295857]
[1772946186232,1.28946291,1940.6,1940.5,0.48457592]
[1772946186731,1.28946291,1940.6,1940.4,0.48457592]
[1772946188424,0.001,1940.6,1940.5,0.48457592]
[1772946190301,1.28846291,1940.6,1940.5,1.77290367]
[1772946191114,1.79167495,1940.9,1940.6,0.48457592]
[1772946191296,0.50360592,1940.9,1940.6,0.48457592]
[1772946192123,0.19925749,1941.0,1940.6,0.48457592]
[1772946192509,1.48725794,1941.0,1940.6,1.77283526]
[1772946193224,0.19925749,1941.0,1940.6,1.77283526]
[1772946193428,1.4872574,1941.0,1940.6,1.77283526]
[1772946193614,0.19809579,1940.9,1940.6,0.48457592]
[1772946194115,0.19809579,1940.9,1940.6,1.77283187]
[1772946194433,1.2881286,1940.8,1940.6,0.48457592]
[1772946194603,0.19846842,1940.7,1940.3,0.48567592]
[1772946195040,0.19846842,1940.7,1940.4,0.48457592]
[1772946195605,0.19883584,1940.9,1940.4,0.48457592]
[1772946195807,1.28958732,1941.0,1940.4,0.48457592]
[1772946196121,1.48878645,1941.0,1940.4,0.48457592]
[1772946196730,0.19955356,1940.9,1940.4,1.77292578]
[1772946196926,0.19955356,1940.9,1940.5,0.48457592]
[1772946199137,0.00153886,1941.0,1940.6,0.48457592]
[1772946199138,0.20179324,1941.0,1940.6,0.48457592]
[1772946199307,1.4897898,1941.0,1940.6,0.48457592]
[1772946199505,0.20179324,1941.0,1940.6,0.48457592]
[1772946200116,1.48981894,1941.0,1940.6,0.48457592]
[1772946200832,5.15158906,1941.2,1940.6,0.48457592]
[1772946200833,0.00082777,1941.1,1940.6,0.53608062]
[1772946202136,0.00082777,1941.1,1940.6,1.8243147]
[1772946202941,0.00082777,1941.1,1940.7,0.53608062]
[1772946203131,0.20179325,1941.0,1940.7,0.53608062]
[1772946203311,0.2035972,1941.0,1940.7,0.53608062]
[1772946204442,0.20179325,1941.0,1940.7,0.53608062]
[1772946204645,0.20279325,1941.0,1940.7,0.53608062]
[1772946204944,0.20554997,1941.0,1940.7,0.53608062]
[1772946205542,0.20279325,1941.0,1940.8,0.53608062]
[1772946207146,0.20279325,1941.0,1940.9,0.53608062]
[1772946210763,0.20279325,1941.0,1940.9,1.82414285]
[1772946211048,0.00547127,1940.9,1940.5,0.53608062]
[1772946211351,0.00547127,1940.9,1940.6,0.53608062]
[1772946212150,0.00547127,1940.9,1940.3,1.28955957]
[1772946212317,0.00547127,1940.9,1940.3,0.0011]
[1772946212611,0.00547127,1940.9,1940.3,0.52329096]
[1772946214136,0.20179325,1940.8,1940.3,0.52329096]
[1772946214318,0.48731639,1940.7,1940.3,0.52329096]
[1772946214520,0.48731639,1940.7,1940.3,1.81175097]
[1772946214946,0.48731639,1940.7,1940.3,1.28956001]
[1772946215122,0.48731639,1940.7,1940.4,0.52219096]
[1772946215741,0.48731639,1940.9,1940.4,1.8105774]
[1772946216138,0.48731639,1940.9,1940.4,1.8116774]
[1772946216327,0.001,1940.8,1940.4,0.52329096]
[1772946216528,0.48831639,1940.8,1940.4,0.52329096]
[1772946217345,0.48831639,1940.8,1940.4,1.81167854]
[1772946218543,0.001,1940.8,1940.5,0.52219096]
[1772946219947,0.001,1940.8,1940.6,0.52219096]
[1772946220757,0.48213273,1940.9,1940.6,0.52219096]
[1772946222057,0.48213273,1940.9,1940.6,1.81043672]
[1772946222221,0.48213273,1940.9,1940.6,0.52219096]
[1772946222422,0.48731639,1940.8,1940.4,0.0011]
[1772946222959,0.48731639,1940.8,1940.5,1.28832775]
[1772946223158,0.48731639,1941.1,1940.5,0.52219096]
[1772946224658,1.28793573,1941.1,1940.6,1.81045232]
[1772946224830,0.48731639,1941.0,1940.6,1.81045232]
[1772946225025,0.48731639,1941.0,1940.6,0.52219096]
[1772946225263,0.48731639,1941.0,1940.5,1.28827458]
[1772946225449,0.48731639,1941.0,1940.5,1.81046554]
[1772946225957,0.48731639,1941.0,1940.6,0.52219096]
[1772946226667,0.48731639,1941.0,1940.6,1.8104234]
[1772946226832,1.77531985,1941.0,1940.6,1.8104234]
[1772946227033,0.48731639,1940.9,1940.6,0.52219096]
[1772946227566,0.48731639,1940.9,1940.6,1.81044746]
[1772946228454,0.48731639,1940.9,1940.6,0.52219096]
[1772946229548,0.48731639,1940.9,1940.6,1.81043302]
[1772946229744,0.001,1940.8,1940.6,1.81043302]
[1772946230741,0.001,1940.8,1940.7,0.52219096]
[1772946231053,0.48731639,1941.2,1940.7,0.52219096]
[1772946231250,0.48731639,1941.3,1940.7,0.52219096]
[1772946231877,0.48731639,1941.1,1940.7,1.81034237]
[1772946235672,0.48731639,1941.0,1940.7,0.52219096]
[1772946236248,0.48731639,1941.0,1940.5,0.52219096]
[1772946236642,0.48731639,1941.0,1940.4,0.52329096]
[1772946237757,0.48731639,1940.8,1940.4,1.81168277]
[1772946238572,0.48731639,1940.8,1940.4,0.52329096]
[1772946239474,0.48731639,1940.8,1940.4,1.81168191]
[1772946239670,0.48731639,1940.8,1940.5,0.52219096]
[1772946239854,1.77547113,1940.8,1940.5,0.52219096]
[1772946240175,0.48731639,1940.8,1940.5,0.52219096]
[1772946240868,0.48731639,1940.8,1940.5,1.81048377]
[1772946241068,0.48731639,1940.8,1940.5,1.81051124]
[1772946241576,0.48731639,1940.8,1940.5,1.81161124]
[1772946241776,0.48831639,1940.8,1940.5,1.81161124]
[1772946242474,0.48831639,1940.8,1940.5,1.81161655]
[1772946242650,0.48831639,1940.8,1940.5,0.52329096]
[1772946243280,0.48831639,1940.8,1940.5,1.81161654]
[1772946243475,0.48831639,1940.8,1940.5,0.0011]
[1772946243476,0.53181452,1940.7,1940.5,0.0011]
[1772946243775,0.53181452,1940.7,1940.4,0.0011]
[1772946244254,1.28826136,1940.6,1940.4,0.0011]
[1772946244444,0.53181452,1940.5,1940.4,0.0011]
[1772946244845,0.53181452,1940.5,1940.1,0.0011]
[1772946244846,0.53181452,1940.4,1940.1,0.0011]
[1772946245268,0.53181452,1940.4,1940.0,0.00263886]
[1772946246925,0.53181452,1940.2,1940.0,0.00263886]
[1772946248972,1.82040789,1940.1,1940.0,0.00263886]
[1772946249155,1.82040789,1940.1,1939.8,0.51123821]
[1772946249355,0.53181452,1940.0,1939.8,0.0011]
[1772946250266,0.53181452,1940.0,1939.7,0.0011]
[1772946250779,0.53181452,1940.0,1939.7,0.51123821]
[1772946251688,0.53181452,1940.0,1939.7,1.80009464]
[1772946252377,0.53181452,1939.9,1939.5,0.51123821]
[1772946252577,0.53181452,1940.1,1939.6,0.51013821]
[1772946252982,0.53181452,1940.1,1939.7,1.79899731]
[1772946253183,1.82041353,1940.1,1939.7,0.51013821]
[1772946253383,0.53181452,1940.0,1939.7,0.51013821]
[1772946254064,0.53181452,1940.0,1939.8,0.0011]
[1772946258866,1.820358,1940.2,1939.8,0.0011]
[1772946259071,1.28849478,1940.3,1939.8,0.51123821]
[1772946259272,0.53181452,1940.2,1939.8,0.51123821]
[1772946261490,0.53181452,1940.2,1939.8,1.79998202]
[1772946261691,1.82034484,1940.2,1939.8,0.51123821]
[1772946262575,1.82034484,1940.2,1939.8,1.80002826]
[1772946262775,1.82034484,1940.2,1939.8,0.51123821]
[1772946264002,1.28853032,1940.2,1939.8,0.51123821]
[1772946264209,1.82034484,1940.2,1939.8,0.51123821]
[1772946264592,1.82034484,1940.2,1939.9,0.51013821]
[1772946265806,0.53181452,1940.2,1939.8,1.7999895]
[1772946265983,1.82034208,1940.2,1939.8,0.51123821]
[1772946266585,0.53281452,1940.1,1939.8,0.51123821]
[1772946266915,0.53281452,1940.1,1939.8,0.0011]
[1772946267908,0.53181452,1940.0,1939.8,0.0011]
[1772946270578,0.53281452,1940.1,1939.8,0.0011]
[1772946270784,0.001,1940.1,1939.8,0.51123821]
[1772946271119,0.53281452,1940.1,1939.8,0.0011]
[1772946272310,1.82142907,1940.1,1939.8,0.0011]
[1772946272709,0.53281452,1940.1,1939.8,0.0011]
[1772946272912,1.82141397,1940.1,1939.8,0.0011]
[1772946273209,1.82141955,1940.1,1939.8,0.0011]
[1772946273911,1.28960503,1940.1,1939.8,0.0011]
[1772946274216,0.54372775,1940.0,1939.8,0.0011]
[1772946274416,0.54372775,1940.0,1939.6,1.28888346]
[1772946274609,1.8325204,1939.8,1939.5,0.0011]
[1772946274803,0.54372775,1939.7,1939.5,0.0011]
[1772946277914,0.54372775,1939.6,1939.4,0.0011]
[1772946278221,0.54372775,1939.6,1939.3,0.52069567]
[1772946278586,1.47432684,1939.6,1939.3,0.0011]
[1772946278790,0.54372775,1939.5,1939.2,0.0011]
[1772946279523,0.54372775,1939.5,1939.0,0.52333453]
[1772946279706,1.28905847,1939.4,1939.0,0.52333453]
[1772946279908,0.54372775,1939.3,1939.0,0.52333453]
[1772946280421,0.54372775,1939.3,1939.0,0.00263886]
[1772946282193,0.54372775,1939.3,1939.0,1.81264897]
[1772946282395,0.54372775,1939.3,1939.0,0.52333453]
[1772946283407,1.77323998,1939.4,1939.0,0.52333453]
[1772946283612,0.48418039,1939.6,1939.0,0.52333453]
[1772946284221,0.48453966,1939.3,1939.0,0.00263886]
[1772946285004,0.48453966,1939.3,1939.0,0.52333453]
[1772946285512,0.48490289,1939.5,1939.0,0.52333453]
[1772946287991,0.54372775,1939.4,1939.1,0.52069567]
[1772946288190,0.54372775,1939.5,1939.1,0.52069567]
[1772946290228,1.28905603,1939.5,1939.2,0.0011]
[1772946290427,0.54372775,1939.4,1939.2,0.0011]
[1772946291423,1.83269984,1939.6,1939.2,0.0011]
[1772946291720,0.54372775,1939.7,1939.2,0.52179567]
[1772946292324,0.54372775,1939.7,1939.4,0.52069567]
[1772946292501,0.001,1940.0,1939.4,0.52069567]
[1772946292703,0.54472775,1940.0,1939.4,0.52069567]
[1772946294326,0.54472775,1940.0,1939.6,0.52069567]
[1772946294503,0.001,1940.0,1939.6,0.52069567]
[1772946296331,0.001,1940.1,1939.7,1.2888591]
[1772946296531,0.001,1940.1,1939.8,0.52069567]
[1772946298309,1.83292939,1940.7,1939.9,0.52069567]
[1772946298534,0.54372775,1940.6,1940.1,0.52069567]
[1772946300539,0.54372775,1940.5,1940.1,1.80925295]
[1772946300706,0.54472775,1940.7,1940.2,0.52069567]
[1772946300912,0.001,1940.7,1940.2,0.52069567]
[1772946301625,0.001,1940.5,1940.2,0.52069567]
[1772946303041,0.001,1940.5,1940.4,0.55906542]
[1772946303432,0.001,1940.7,1940.4,0.55906542]
[1772946303947,0.001,1940.8,1940.5,0.55906542]
[1772946305040,0.001,1940.8,1940.6,1.28826136]
[1772946306047,0.001,1940.8,1940.7,0.55906542]
[1772946307629,0.001,1940.8,1940.7,1.8472604]
[1772946311259,0.00153886,1941.0,1940.8,0.55906542]
[1772946312458,0.00153886,1941.0,1940.9,0.55906542]
[1772946315153,1.28780641,1941.3,1940.9,0.55906542]
[1772946315781,6.51881708,1941.4,1940.9,0.55906542]
[1772946315782,0.860364,1941.4,1940.9,0.55906542]
[1772946316847,0.860364,1941.4,1941.1,0.55906542]
[1772946317833,0.50752434,1941.8,1941.2,0.55906542]
[1772946318038,1.79497346,1941.9,1941.2,0.55906542]
[1772946318466,0.50752434,1941.8,1941.2,0.55906542]
[1772946318848,0.50752434,1941.8,1941.4,0.55906542]
[1772946319349,1.79499326,1941.8,1941.4,0.55906542]
[1772946319549,0.50752434,1941.8,1941.4,0.55906542]
[1772946320766,1.79497463,1941.9,1941.4,0.55906542]
[1772946321266,0.50752434,1941.8,1941.2,0.55906542]
[1772946321564,5.15096742,1942.0,1941.0,1.84704779]
[1772946321565,0.50752434,1941.7,1941.0,1.84704779]
[1772946322251,0.50752434,1941.7,1941.0,1.28798237]
[1772946322459,0.50752434,1941.7,1941.1,0.55906542]
[1772946323148,1.43812343,1941.7,1940.9,0.55906542]
[1772946323343,0.50752434,1941.4,1940.8,0.6139937]
[1772946323743,0.50752434,1941.4,1940.8,1.90210931]
[1772946324069,0.50752434,1941.4,1940.8,2.46117473]
[1772946325266,1.28779683,1941.3,1940.8,0.6139937]
[1772946325565,0.50752434,1941.2,1941.1,0.0011]
[1772946326168,0.50752434,1941.4,1941.1,0.0011]
[1772946326375,0.50752434,1941.3,1941.1,0.0011]
[1772946327470,0.50752434,1941.5,1941.1,0.0011]
[1772946327767,1.79505588,1941.7,1941.1,0.56016542]
[1772946327941,0.50752434,1941.6,1941.1,0.56016542]
[1772946328354,0.50752434,1941.6,1941.1,0.0011]
[1772946329561,0.50752434,1941.4,1941.1,0.0011]
[1772946330274,1.79517472,1941.6,1941.1,0.56016542]
[1772946330670,0.50752434,1941.4,1941.1,0.0011]
[1772946331450,1.28779683,1941.3,1941.1,0.0011]
[1772946331656,1.79532117,1941.3,1941.1,0.0011]
[1772946332844,0.50752434,1941.3,1941.1,0.0011]
[1772946334372,1.79532393,1941.3,1941.1,0.0011]
[1772946334574,0.5404113,1941.7,1941.1,0.51562448]
[1772946334775,0.5404113,1941.6,1941.1,0.51562448]
[1772946335774,1.82801425,1941.6,1941.1,1.80350338]
[1772946335969,1.82801425,1941.6,1941.1,0.51562448]
[1772946336368,1.82801425,1941.6,1941.1,1.80355288]
[1772946336675,1.82801425,1941.6,1941.1,0.51562448]
[1772946337353,1.82801425,1941.6,1941.1,1.80354198]
[1772946337877,0.001,1941.3,1941.2,0.0011]
[1772946339577,0.001,1941.3,1941.1,0.0011]
[1772946339578,0.5414113,1941.3,1941.1,0.0011]
[1772946341378,0.001,1941.3,1941.1,0.0011]
[1772946343688,0.5414113,1941.3,1941.1,0.0011]
[1772946344584,1.82927245,1941.3,1941.1,0.0011]
[1772946345575,0.5404113,1941.1,1940.5,1.80393281]
[1772946345758,0.5404113,1941.1,1940.6,0.6161937]
[1772946346084,0.5404113,1941.1,1940.7,0.6161937]
[1772946346489,0.5404113,1941.1,1940.7,1.13071818]
[1772946346661,1.82838817,1941.1,1940.8,1.13071818]
[1772946346975,1.28797687,1941.1,1940.8,0.51452448]
[1772946347362,0.5404113,1941.2,1940.8,0.51452448]
[1772946347584,0.5404113,1941.2,1940.8,1.13071818]
[1772946347883,1.28884906,1941.3,1940.9,1.13071818]
[1772946348087,1.28884906,1941.3,1940.9,0.51452448]
[1772946348283,0.5414113,1941.3,1940.9,0.51452448]
[1772946348490,0.001,1941.3,1941.1,0.51452448]
[1772946348967,0.001,1941.3,1941.1,1.13071818]
[1772946349176,0.001,1941.3,1941.2,0.6161937]
[1772946349687,0.001,1941.3,1941.2,1.13071818]
[1772946350668,0.001,1941.3,1941.2,0.6161937]
[1772946352025,0.5414113,1941.3,1941.0,0.0011]
[1772946352192,0.5414113,1941.3,1941.0,0.6172937]
[1772946352566,0.001,1941.3,1941.0,0.6172937]
[1772946352767,0.5414113,1941.3,1941.0,0.6172937]
[1772946352983,0.001,1941.3,1941.0,0.6172937]
[1772946353176,0.5414113,1941.3,1941.0,0.6172937]
[1772946354776,1.28786317,1941.2,1941.0,0.6172937]
[1772946355889,1.8292561,1941.3,1941.0,0.6172937]
[1772946356097,1.8292561,1941.3,1941.1,0.6161937]
[1772946357492,0.5404113,1941.2,1941.1,0.6161937]
[1772946357896,0.5404113,1941.1,1940.7,0.0011]
[1772946358889,1.82840717,1941.0,1940.7,0.0011]
[1772946359399,0.5404113,1940.9,1940.7,0.0011]
[1772946361096,0.5404113,1940.9,1940.8,0.6161937]
[1772946361394,1.82847353,1940.9,1940.8,0.6161937]
[1772946362495,0.50846402,1940.8,1940.7,0.0011]
[1772946362675,0.50846402,1940.8,1940.5,0.0011]
[1772946362877,0.50846402,1940.8,1940.5,0.6172937]
[1772946363066,1.28819498,1940.7,1940.5,0.6172937]
[1772946363397,0.55192226,1940.6,1940.5,0.48730873]
[1772946363899,0.55192226,1940.6,1940.2,0.90208545]
[1772946365199,0.55192226,1940.5,1940.2,0.34875843]
[1772946365398,1.94992226,1940.8,1940.3,0.55332702]
[1772946365599,1.84010251,1940.8,1940.3,0.55332702]
[1772946368008,0.55192226,1941.0,1940.5,0.55332702]
[1772946368511,6.55271809,1941.2,1940.5,0.55332702]
[1772946368512,1.84083058,1941.2,1940.5,0.55332702]
[1772946369785,1.84083058,1941.2,1940.6,1.28826136]
[1772946370112,1.84083058,1941.2,1940.7,0.55332702]
[1772946370715,0.55292226,1941.2,1940.7,0.55332702]
[1772946370916,1.28886626,1941.2,1940.7,0.55332702]
[1772946371112,0.001,1941.2,1940.7,0.55332702]
[1772946371312,1.28887401,1941.2,1940.7,0.55332702]
[1772946372117,1.28887401,1941.2,1940.7,1.84145879]
[1772946372318,0.001,1941.2,1940.8,0.55332702]
[1772946375204,0.001,1941.2,1940.9,0.55332702]
[1772946375405,0.001,1941.1,1940.9,0.55332702]
[1772946375707,0.001,1941.3,1940.9,0.55332702]
[1772946377098,0.001,1941.3,1940.9,1.84132784]
[1772946377311,0.001,1941.3,1941.0,0.55332702]
[1772946377513,0.001,1941.3,1940.8,0.55332702]
[1772946377734,0.001,1941.3,1940.9,0.55332702]
[1772946378894,1.84043937,1941.8,1941.0,0.55332702]
[1772946379224,0.55192226,1941.7,1941.2,0.55332702]